bitfinex-derivatives/quotes_SOLF0:USTF0_20250524
["timestamp","ask_amount","ask_price","bid_price","bid_amount"]
[1748077015599,5.7195,174.8,174.78,0.03723365]
[1748077016695,0.04056845,174.81,174.78,0.03723365]
[1748077017798,0.04056845,174.81,174.79,6.13599166]
[1748077018094,0.04056845,174.81,174.78,0.03723365]
[1748077018294,5.75956845,174.81,174.79,6.14216208]
[1748077018497,0.04056845,174.81,174.78,0.03723365]
[1748077018695,0.04056845,174.81,174.79,6.14270118]
[1748077018896,0.04056845,174.81,174.78,0.03723365]
[1748077019092,5.7195,174.8,174.79,6.14270118]
[1748077020897,0.04056845,174.81,174.79,6.14270118]
[1748077021201,0.04056845,174.81,174.8,6.14114452]
[1748077021594,0.04056845,174.81,174.8,11.86044452]
[1748077022198,0.04056845,174.81,174.8,13.87694645]
[1748077022399,5.7172,174.87,174.8,8.15764645]
[1748077022599,5.7172,174.87,174.81,8.15764645]
[1748077022898,5.7174,174.86,174.83,5.7181]
[1748077023292,0.04236944,174.86,174.84,6.13530637]
[1748077023500,0.04236944,174.86,174.83,0.0367374]
[1748077023691,0.04236944,174.86,174.84,6.13248142]
[1748077023889,0.04236944,174.86,174.83,0.0367374]
[1748077024102,5.7177,174.85,174.84,6.13303555]
[1748077024291,5.7177,174.85,174.84,6.13287652]
[1748077024491,5.7177,174.85,174.83,0.0367374]
[1748077024687,5.718,174.84,174.83,0.0367374]
[1748077024887,5.718,174.84,174.83,6.16827491]
[1748077027603,5.7177,174.85,174.83,6.16827491]
[1748077027903,5.7177,174.85,174.83,0.0367374]
[1748077028101,0.04236944,174.86,174.83,0.0367374]
[1748077029807,5.7177,174.85,174.83,0.0367374]
[1748077030002,0.04236944,174.86,174.83,0.0367374]
[1748077030402,0.04236944,174.86,174.83,5.7549374]
[1748077031506,0.04236944,174.86,174.84,5.7178]
[1748077032002,0.04236944,174.86,174.83,0.0367374]
[1748077032803,5.75976944,174.86,174.83,0.0367374]
[1748077033105,0.04236944,174.86,174.83,0.0367374]
[1748077033408,5.75986944,174.86,174.83,0.0367374]
[1748077033608,0.04236944,174.86,174.83,0.0367374]
[1748077034103,5.718,174.84,174.83,0.0367374]
[1748077038105,5.718,174.84,174.83,3.74e-05]
[1748077044012,119.658,174.84,174.83,3.74e-05]
[1748077054519,5.718,174.84,174.83,3.74e-05]
[1748077054718,0.04236944,174.86,174.83,3.74e-05]
[1748077055120,5.7177,174.85,174.83,3.74e-05]
[1748077057334,5.75986944,174.86,174.83,5.7183374]
[1748077057626,5.75986944,174.86,174.83,3.74e-05]
[1748077057826,0.04236944,174.86,174.83,3.74e-05]
[1748077058534,5.75986944,174.86,174.83,5.7183374]
[1748077060934,5.75986944,174.86,174.83,3.74e-05]
[1748077061136,5.7177,174.85,174.83,3.74e-05]
[1748077061329,0.04236944,174.86,174.83,3.74e-05]
[1748077061630,5.75986944,174.86,174.83,5.7183374]
[1748077062133,5.75986944,174.86,174.83,3.74e-05]
[1748077062935,0.04236944,174.86,174.83,3.74e-05]
[1748077063134,0.04236944,174.86,174.84,6.12081924]
[1748077063435,0.04236944,174.86,174.85,11.83851924]
[1748077066639,0.04236944,174.86,174.85,11.85387987]
[1748077066833,0.04236944,174.86,174.85,6.13617987]
[1748077067641,0.04236944,174.86,174.85,11.85387987]
[1748077068438,0.04236944,174.86,174.85,11.85247478]
[1748077068633,113.96,174.95,174.85,122.12389804]
[1748077068833,5.7151,174.93,174.86,8.14389804]
[1748077069033,5.7151,174.93,174.87,8.14389804]
[1748077069339,113.96,174.95,174.88,8.14389804]
[1748077069638,0.04095295,174.93,174.9,0.04326956]
[1748077069945,5.7154,174.92,174.9,0.04326956]
[1748077070144,0.04095295,174.93,174.9,0.04326956]
[1748077070841,0.04095295,174.93,174.9,5.75926956]
[1748077071143,0.04095295,174.93,174.9,0.04326956]
[1748077071636,0.04095295,174.93,174.91,5.7155]
[1748077072543,0.04095295,174.93,174.92,5.7154]
[1748077073641,113.96,175.02,174.94,5.7146]
[1748077074043,113.96,175.02,174.93,113.96]
[1748077074044,5.7132,174.99,174.93,113.96]
[1748077074245,113.96,175.02,174.95,5.7144]
[1748077074448,5.7133,174.99,174.93,113.96]
[1748077074743,5.7133,174.99,174.94,0.04386249]
[1748077074946,5.7137,174.98,174.94,5.75856249]
[1748077075243,113.96,175.02,174.94,0.04386249]
[1748077075438,113.96,175.02,174.94,5.75836249]
[1748077076345,5.7133,174.99,174.95,5.7144]
[1748077077547,5.7136,174.98,174.94,0.04386249]
[1748077078546,5.7136,174.98,174.94,5.75836249]
[1748077079945,113.96,175.02,174.94,0.04386249]
[1748077080348,5.713,175.0,174.96,5.714]
[1748077080641,113.96,175.02,174.94,0.04386249]
[1748077081342,5.7133,174.99,174.94,5.75836249]
[1748077081753,5.7134,174.98,174.94,5.75836249]
[1748077082043,113.96,175.02,174.94,0.04386249]
[1748077082244,119.26646421,175.02,174.94,0.04386249]
[1748077082449,5.7144,174.95,174.94,0.04386249]
[1748077083650,5.7144,174.95,174.94,6.249e-05]
[1748077084244,5.717,174.88,174.85,5.33692152]
[1748077084446,115.8,174.91,174.85,5.33692152]
[1748077085251,5.7166,174.89,174.86,0.04194088]
[1748077086750,5.7167,174.88,174.86,0.04194088]
[1748077087054,0.04230084,174.9,174.86,0.04194088]
[1748077088050,5.75860084,174.9,174.86,0.04194088]
[1748077088249,0.04230084,174.9,174.86,0.04194088]
[1748077088750,5.7166,174.89,174.86,0.04194088]
[1748077089651,5.7167,174.88,174.86,0.04194088]
[1748077090347,5.7164,174.89,174.86,0.04194088]
[1748077090951,0.04230084,174.9,174.86,0.04194088]
[1748077091646,5.717,174.88,174.86,0.04194088]
[1748077092648,5.7164,174.89,174.86,0.04194088]
[1748077093749,5.7167,174.88,174.86,0.04194088]
[1748077095453,0.04230084,174.9,174.86,0.04194088]
[1748077096048,5.75860084,174.9,174.86,5.75904088]
[1748077096256,0.04230084,174.9,174.86,5.75904088]
[1748077096558,5.7164,174.89,174.86,0.04194088]
[1748077097264,5.75840084,174.9,174.86,5.75924088]
[1748077099060,0.04230084,174.9,174.86,0.04194088]
[1748077099259,115.86230084,174.9,174.86,0.04194088]
[1748077099459,1.9881,174.89,174.86,0.04194088]
[1748077099761,1.9881,174.89,174.77,115.82]
[1748077099955,1.9881,174.89,174.81,3.68107019]
[1748077100755,0.04344317,174.87,174.83,0.03881263]
[1748077100954,115.82,174.86,174.83,0.03881263]
[1748077101159,117.6974,174.86,174.78,3.68107019]
[1748077101362,5.7185,174.83,174.79,6.11482249]
[1748077101560,117.6974,174.86,174.78,3.68107019]
[1748077101758,117.6974,174.86,174.79,6.11452197]
[1748077101966,117.6974,174.86,174.78,3.68107019]
[1748077102160,0.04230405,174.84,174.81,5.75590119]
[1748077102366,0.04230405,174.84,174.81,0.03700119]
[1748077104267,0.04230405,174.84,174.81,5.75590119]
[1748077105470,5.76040405,174.84,174.81,5.75590119]
[1748077106268,0.04230405,174.84,174.83,5.7183]
[1748077106472,0.04230405,174.84,174.83,11.84190053]
[1748077106668,0.04230405,174.84,174.83,11.84173493]
[1748077107169,0.04230405,174.84,174.83,6.12343493]
[1748077108073,0.04230405,174.84,174.83,11.84173493]
[1748077108472,0.04230405,174.84,174.83,11.84221658]
[1748077110269,0.04230405,174.84,174.83,6.12391658]
[1748077111268,0.04230405,174.84,174.81,115.87700119]
[1748077111468,0.04230405,174.84,174.82,6.12893428]
[1748077111672,0.04230405,174.84,174.81,115.87700119]
[1748077111867,0.04230405,174.84,174.82,6.12875825]
[1748077112064,0.04230405,174.84,174.81,0.03700119]
[1748077113683,5.76040405,174.84,174.81,0.03700119]
[1748077113973,0.04230405,174.84,174.81,0.03700119]
[1748077114277,0.04230405,174.84,174.82,5.7184]
[1748077115674,0.04230405,174.84,174.83,5.7183]
[1748077116570,0.04230405,174.84,174.83,11.84867283]
[1748077117582,0.04230405,174.84,174.83,11.84922851]
[1748077117774,1.9422,174.97,174.83,8.13843335]
[1748077117975,1.9422,174.97,174.85,5.30646421]
[1748077118279,1.9422,174.97,174.89,5.7161]
[1748077118670,5.7149,174.94,174.91,0.04360488]
[1748077119278,5.75280223,174.95,174.91,0.04360488]
[1748077119781,5.75280223,174.95,174.91,5.75910488]
[1748077119986,5.7147,174.94,174.91,5.75910488]
[1748077121083,5.7147,174.94,174.91,0.04360488]
[1748077122780,5.75280223,174.95,174.91,0.04360488]
[1748077123686,5.75280223,174.95,174.91,5.75910488]
[1748077123880,5.75280223,174.95,174.91,0.04360488]
[1748077124681,5.75280223,174.95,174.92,5.7153]
[1748077124880,5.7148,174.94,174.91,0.04360488]
[1748077125477,0.03830223,174.95,174.91,0.04360488]
[1748077125779,0.03830223,174.95,174.93,5.7148]
[1748077127093,0.03830223,174.95,174.92,5.7153]
[1748077127380,3.9194,174.99,174.91,0.04360488]
[1748077127381,115.32,175.03,174.93,8.1428404]
[1748077127581,115.32,175.03,174.94,8.1428404]
[1748077127785,2.0234,175.02,174.92,2.00856931]
[1748077127986,2.0234,175.02,174.93,6.13230319]
[1748077128189,2.0234,175.02,174.94,6.13230319]
[1748077128481,5.7141,174.97,174.96,0.03915728]
[1748077130685,115.32,174.99,174.96,0.03915728]
[1748077131284,5.7138,174.97,174.96,0.03915728]
[1748077135388,115.32,174.99,174.96,0.03915728]
[1748077135991,5.7136,174.98,174.96,0.03915728]
[1748077136398,115.32,174.99,174.96,0.03915728]
[1748077136699,5.7134,174.98,174.96,0.03915728]
[1748077137001,115.32,174.99,174.96,0.03915728]
[1748077137294,5.7134,174.98,174.96,0.03915728]
[1748077138497,5.7138,174.97,174.96,0.03915728]
[1748077143408,5.7135,174.98,174.96,0.03915728]
[1748077143600,115.32,174.99,174.96,0.03915728]
[1748077144698,5.7138,174.97,174.96,0.03915728]
[1748077145706,5.7135,174.98,174.96,0.03915728]
[1748077145909,115.32,174.99,174.96,0.03915728]
[1748077146310,121.0333,174.99,174.96,0.03915728]
[1748077148307,5.7135,174.98,174.96,0.03915728]
[1748077151612,0.04395859,175.0,174.96,0.03915728]
[1748077152006,5.75675859,175.0,174.97,5.7135]
[1748077152206,5.75675859,175.0,174.96,0.03915728]
[1748077152809,5.75675859,175.0,174.97,5.7135]
[1748077153515,0.04395859,175.0,174.97,5.7137]
[1748077154006,5.75695859,175.0,174.97,5.7137]
[1748077155715,5.7132,174.99,174.96,5.75305728]
[1748077157417,5.75695859,175.0,174.96,5.75305728]
[1748077158318,5.75695859,175.0,174.97,5.7136]
[1748077159423,0.04395859,175.0,174.97,5.7136]
[1748077159620,0.04395859,175.0,174.96,5.75315728]
[1748077160213,5.75695859,175.0,174.96,5.75315728]
[1748077161222,0.04395859,175.0,174.97,5.7137]
[1748077161624,0.04395859,175.0,174.98,5.7132]
[1748077162020,0.04395859,175.0,174.96,0.03915728]
[1748077162221,0.04395859,175.0,174.99,5.7131]
[1748077162526,0.04395859,175.0,174.99,126.40076718]
[1748077162711,0.04395859,175.0,174.99,126.4003238]
[1748077162913,0.04395859,175.0,174.99,128.41321839]
[1748077164321,0.04395859,175.0,174.99,128.41155278]
[1748077164724,0.04395859,175.0,174.99,131.89784372]
[1748077169432,0.04395859,175.0,174.99,128.41155278]
[1748077169830,0.04395859,175.0,174.99,128.40955358]
[1748077171631,0.04395859,175.0,174.99,128.40912522]
[1748077173129,0.04395859,175.0,174.99,8.13602522]
[1748077173431,0.04395859,175.0,174.96,116.43225728]
[1748077173631,0.04395859,175.0,174.97,6.1202408]
[1748077173828,5.75695859,175.0,174.98,6.1202408]
[1748077174131,5.75695859,175.0,174.96,122.14605728]
[1748077174324,5.75695859,175.0,174.97,6.12065591]
[1748077174623,5.75695859,175.0,174.98,6.12106239]
[1748077174818,5.75695859,175.0,174.97,5.7137]
[1748077175026,5.75695859,175.0,174.98,6.12108888]
[1748077175232,5.75695859,175.0,174.97,5.7137]
[1748077175426,5.75695859,175.0,174.98,6.12130228]
[1748077175724,5.75695859,175.0,174.97,5.7137]
[1748077175927,5.75695859,175.0,174.98,6.12137241]
[1748077176126,5.75695859,175.0,174.97,5.7137]
[1748077176327,0.04395859,175.0,174.98,6.12137241]
[1748077176530,0.04395859,175.0,174.97,5.7137]
[1748077176718,0.04395859,175.0,174.98,6.12185836]
[1748077176923,0.04395859,175.0,174.97,5.7137]
[1748077177137,0.04395859,175.0,174.98,6.12185836]
[1748077177430,0.04395859,175.0,174.98,5.7134]
[1748077177630,0.04395859,175.0,174.97,2.0129495]
[1748077177827,0.04395859,175.0,174.98,6.12173797]
[1748077178028,0.04395859,175.0,174.97,7.72912925]
[1748077178236,0.04395859,175.0,174.98,6.12168188]
[1748077178530,0.04395859,175.0,174.97,5.7136]
[1748077178733,0.04395859,175.0,174.98,6.12229039]
[1748077179032,0.04395859,175.0,174.97,5.7136]
[1748077179330,0.04395859,175.0,174.98,6.12225529]
[1748077179533,0.04395859,175.0,174.97,5.7136]
[1748077179731,0.04395859,175.0,174.98,11.83614124]
[1748077180032,0.04395859,175.0,174.98,5.7134]
[1748077180427,0.04395859,175.0,174.99,6.12286752]
[1748077181232,0.04395859,175.0,174.99,11.83596752]
[1748077181529,0.04395859,175.0,174.99,6.12286752]
[1748077182638,0.04395859,175.0,174.99,6.12471838]
[1748077184237,5.75675859,175.0,174.99,6.12471838]
[1748077186437,0.04395859,175.0,174.99,6.12532716]
[1748077186636,0.04395859,175.0,174.96,114.55915728]
[1748077186935,0.04395859,175.0,174.97,6.12528454]
[1748077187136,0.04395859,175.0,174.98,6.12528454]
[1748077187334,0.04395859,175.0,174.96,0.03915728]
[1748077187536,0.04395859,175.0,174.97,6.12691497]
[1748077187726,0.04395859,175.0,174.96,0.03915728]
[1748077187929,0.04395859,175.0,174.97,6.12736858]
[1748077188138,5.7138,174.97,174.96,0.03915728]
[1748077188435,5.7138,174.97,174.96,6.16738305]
[1748077189838,5.7138,174.97,174.96,0.03915728]
[1748077190739,5.7138,174.97,174.96,5.728e-05]
[1748077191038,119.6938,174.97,174.96,5.728e-05]
[1748077191437,5.7138,174.97,174.96,5.728e-05]
[1748077192340,5.7135,174.98,174.96,5.728e-05]
[1748077192537,117.8108,174.99,174.96,5.728e-05]
[1748077192838,5.7136,174.98,174.96,5.728e-05]
[1748077193442,5.7137,174.97,174.96,5.728e-05]
[1748077193637,3.8308,174.99,174.96,5.728e-05]
[1748077194237,5.7137,174.98,174.96,5.728e-05]
[1748077194431,114.04395859,175.0,174.96,5.728e-05]
[1748077194635,0.04395859,175.0,174.96,5.728e-05]
[1748077194836,5.7133,174.99,174.96,5.728e-05]
[1748077198143,0.04395859,175.0,174.96,5.728e-05]
[1748077198946,0.04395859,175.0,174.97,6.12608481]
[1748077199145,0.04395859,175.0,174.97,5.7137]
[1748077199745,0.04395859,175.0,174.97,5.7135]
[1748077200145,0.04395859,175.0,174.96,5.728e-05]
[1748077200345,0.04395859,175.0,174.97,6.12547796]
[1748077200546,0.04395859,175.0,174.97,5.7137]
[1748077200747,5.75675859,175.0,174.97,5.7137]
[1748077201951,5.7131,174.99,174.96,5.728e-05]
[1748077202247,5.7131,174.99,174.97,6.12599147]
[1748077202450,5.7131,174.99,174.96,5.728e-05]
[1748077202749,5.7131,174.99,174.97,6.1282246]
[1748077202946,5.7131,174.99,174.96,5.728e-05]
[1748077203149,5.7131,174.99,174.97,6.12851039]
[1748077203450,5.7131,174.99,174.96,5.728e-05]
[1748077203651,5.7131,174.99,174.97,6.12868088]
[1748077203851,0.04395859,175.0,174.96,5.728e-05]
[1748077204352,5.7134,174.98,174.96,5.728e-05]
[1748077206353,5.7137,174.97,174.96,5.728e-05]
[1748077215660,5.7159,174.91,174.87,121.49073045]
[1748077215967,5.7159,174.91,174.9,6.12969068]
[1748077216263,5.7173,174.87,174.85,5.33692152]
[1748077216470,3.38937341,174.9,174.86,6.13425096]
[1748077216762,3.42694032,174.9,174.87,6.13425096]
[1748077217067,0.03756691,174.9,174.86,0.03683106]
[1748077217362,5.7166,174.89,174.87,6.13056975]
[1748077217661,5.33581331,174.9,174.86,0.03683106]
[1748077218167,0.03756691,174.9,174.86,0.03683106]
[1748077219054,0.03756691,174.9,174.87,6.12560045]
[1748077219259,0.03756691,174.9,174.86,0.03683106]
[1748077219462,0.03756691,174.9,174.87,6.1253681]
[1748077219653,0.03756691,174.9,174.86,0.03683106]
[1748077220464,5.75356691,174.9,174.86,5.75403106]
[1748077220863,5.75356691,174.9,174.86,0.03683106]
[1748077221663,5.75356691,174.9,174.86,5.75413106]
[1748077222953,0.03756691,174.9,174.86,0.03683106]
[1748077223760,5.75386691,174.9,174.86,0.03683106]
[1748077223960,0.03756691,174.9,174.86,0.03683106]
[1748077224150,0.03756691,174.9,174.86,5.75413106]
[1748077224354,0.03756691,174.9,174.86,0.03683106]
[1748077225065,0.03756691,174.9,174.87,5.7168]
[1748077225863,5.75356691,174.9,174.86,5.75413106]
[1748077226365,0.03756691,174.9,174.86,0.03683106]
[1748077227264,5.7164,174.89,174.86,0.03683106]
[1748077228172,5.75366691,174.9,174.86,5.75413106]
[1748077228467,5.75366691,174.9,174.86,0.03683106]
[1748077228659,5.75366691,174.9,174.86,5.75403106]
[1748077229669,5.75366691,174.9,174.87,5.717]
[1748077230466,5.75366691,174.9,174.86,5.75413106]
[1748077230867,5.7164,174.89,174.86,0.03683106]
[1748077231069,0.03756691,174.9,174.86,5.75413106]
[1748077231565,0.03756691,174.9,174.87,5.717]
[1748077232967,0.03756691,174.9,174.86,114.45683106]
[1748077233265,114.42,174.97,174.87,13.40254073]
[1748077233460,5.7142,174.96,174.88,8.10429433]
[1748077233766,2.0191,174.99,174.89,8.10429433]
[1748077233973,5.7141,174.97,174.93,5.715]
[1748077234173,0.03836618,174.97,174.93,0.03867985]
[1748077234671,5.7141,174.96,174.93,0.03867985]
[1748077235670,5.7141,174.96,174.93,5.75367985]
[1748077236868,0.03836618,174.97,174.94,6.09212783]
[1748077237169,0.03836618,174.97,174.95,6.09212783]
[1748077237373,5.7118,175.03,174.94,118.24204356]
[1748077237672,5.7118,175.03,174.95,8.08999543]
[1748077237971,114.76,175.04,175.0,5.7127]
[1748077237972,5.7115,175.04,175.0,5.7127]
[1748077238368,5.7115,175.04,175.0,5.74924247]
[1748077238563,2.0559,175.06,175.0,0.03654247]
[1748077238770,5.7112,175.05,175.01,5.7124]
[1748077239170,5.7116,175.04,175.01,5.7124]
[1748077239472,5.7116,175.04,175.0,5.74924247]
[1748077240176,2.0559,175.06,175.0,5.74924247]
[1748077240365,2.0559,175.06,175.01,5.7124]
[1748077240567,2.0559,175.06,175.0,0.03654247]
[1748077240865,5.7117,175.04,175.0,5.74924247]
[1748077241066,2.0559,175.06,175.0,5.74924247]
[1748077241970,114.76,175.07,175.01,5.7122]
[1748077242173,2.014,175.12,175.02,114.72]
[1748077242470,5.7098,175.1,175.06,5.7108]
[1748077242674,2.014,175.12,175.05,0.03644128]
[1748077242873,114.72,175.13,175.06,114.72]
[1748077243175,5.7091,175.12,175.07,5.7104]
[1748077243659,120.4288,175.13,175.08,5.7099]
[1748077243865,1.9221,175.14,175.09,0.04248798]
[1748077244266,114.72,175.16,175.09,0.04248798]
[1748077244874,5.7085,175.14,175.09,0.04248798]
[1748077245174,114.72,175.16,175.09,0.04248798]
[1748077245576,114.72,175.16,175.1,5.7094]
[1748077246273,5.7079,175.15,175.1,5.7094]
[1748077246667,114.7,175.19,175.11,120.4091]
[1748077246865,114.7,175.19,175.13,0.03646354]
[1748077247676,5.7075,175.17,175.13,0.03646354]
[1748077248178,5.7082,175.14,175.13,0.03646354]
[1748077248672,119.9982464,175.19,175.13,0.03646354]
[1748077248977,114.66,175.19,175.13,0.03646354]
[1748077249169,118.555,175.22,175.13,0.03646354]
[1748077249373,116.5821,175.22,175.13,0.03646354]
[1748077250278,5.7076,175.16,175.13,0.03646354]
[1748077250481,116.5821,175.22,175.13,0.03646354]
[1748077251279,116.5821,175.22,175.13,5.74496354]
[1748077251280,5.7068,175.19,175.13,5.74496354]
[1748077251879,116.5821,175.22,175.13,5.74496354]
[1748077252680,5.7069,175.18,175.13,5.74496354]
[1748077252976,116.5821,175.22,175.13,5.74496354]
[1748077252977,116.5821,175.22,175.13,0.03646354]
[1748077253481,5.7066,175.19,175.13,0.03646354]
[1748077253980,1.9221,175.22,175.13,0.03646354]
[1748077254183,5.7067,175.19,175.14,5.708]
[1748077256086,5.707,175.18,175.14,5.708]
[1748077256278,5.707,175.18,175.13,5.74486354]
[1748077256880,5.707,175.18,175.14,5.7082]
[1748077257684,116.5621,175.22,175.13,0.03646354]
[1748077257880,114.64,175.22,175.13,0.03646354]
[1748077258182,5.7058,175.22,175.14,114.62]
[1748077258379,5.7058,175.22,175.15,2.0403]
[1748077258584,5.7058,175.22,175.17,5.74547877]
[1748077259282,114.62,175.24,175.17,5.74547877]
[1748077259283,5.706,175.21,175.17,0.03847877]
[1748077259484,119.9182464,175.24,175.17,0.03847877]
[1748077259680,3.8695,175.23,175.17,0.03847877]
[1748077260079,5.8845,175.23,175.17,0.03847877]
[1748077260385,5.7069,175.18,175.17,0.03847877]
[1748077260586,114.6,175.2,175.06,7.2996464]
[1748077260786,114.6,175.2,175.05,5.7111]
[1748077260787,5.7096,175.1,175.05,5.7111]
[1748077260985,114.6,175.13,175.05,5.7111]
[1748077261186,114.6,175.13,175.03,116.5074]
[1748077261381,114.6,175.13,175.05,5.7109]
[1748077261576,0.03701063,175.11,175.07,0.04006939]
[1748077262386,0.03701063,175.11,175.07,114.64006939]
[1748077262685,0.03701063,175.11,175.1,5.7095]
[1748077265286,114.62,175.19,175.14,5.708]
[1748077265481,5.7078,175.16,175.11,114.62]
[1748077265682,5.7078,175.16,175.12,5.7086]
[1748077265883,114.62,175.19,175.11,114.62]
[1748077266183,114.62,175.19,175.13,5.75012743]
[1748077266383,114.62,175.19,175.13,0.04172743]
[1748077267292,5.707,175.18,175.13,0.04172743]
[1748077267982,5.707,175.18,175.13,5.75012743]
[1748077268187,5.707,175.18,175.13,0.04172743]
[1748077268392,7.6097,175.2,175.13,0.04172743]
[1748077268588,1.9032,175.2,175.17,5.7072]
[1748077268792,1.9032,175.2,175.17,5.74507972]
[1748077269491,1.9032,175.2,175.17,0.03787972]
[1748077270287,1.9141,175.21,175.17,0.03787972]
[1748077270490,115.92,175.24,175.17,0.03787972]
[1748077270694,115.92,175.24,175.17,5.74507972]
[1748077270893,5.7059,175.22,175.17,5.74507972]
[1748077271397,5.7056,175.22,175.17,0.03787972]
[1748077271881,5.7056,175.23,175.17,0.03787972]
[1748077272291,121.625,175.24,175.19,5.7063]
[1748077272495,121.625,175.24,175.17,0.03787972]
[1748077272900,121.625,175.24,175.2,5.7062]
[1748077273396,5.7053,175.23,175.17,0.03787972]
[1748077273999,5.7053,175.23,175.18,5.7069]
[1748077274201,115.92,175.24,175.17,0.03787972]
[1748077274496,115.92,175.24,175.17,5.74487972]
[1748077274699,5.7056,175.22,175.17,0.03787972]
[1748077274888,115.92,175.24,175.17,0.03787972]
[1748077275091,115.92,175.24,175.17,5.74507972]
[1748077275292,5.706,175.21,175.17,0.03787972]
[1748077275498,115.92,175.24,175.17,0.03787972]
[1748077276400,4.0303,175.25,175.17,0.03787972]
[1748077277105,5.7053,175.23,175.18,5.7068]
[1748077277604,5.7053,175.23,175.19,5.7066]
[1748077277898,4.0303,175.25,175.17,115.93787972]
[1748077278295,9.7352,175.25,175.2,5.7061]
[1748077278596,9.7352,175.25,175.21,0.04006854]
[1748077278805,9.7352,175.25,175.21,5.74576854]
[1748077279099,9.7352,175.25,175.21,0.04006854]
[1748077279508,9.7352,175.25,175.21,5.74586854]
[1748077280602,5.705,175.24,175.21,0.04006854]
[1748077281305,5.7056,175.22,175.21,0.04006854]
[1748077281694,5.7065,175.2,175.18,3.45108944]
[1748077281901,115.88,175.23,175.15,3.45108944]
[1748077282295,5.706,175.21,175.15,9.15888944]
[1748077282601,115.88,175.23,175.15,3.45108944]
[1748077282804,0.04190859,175.21,175.17,0.04040945]
[1748077284501,5.7068,175.19,175.17,0.04040945]
[1748077284704,0.04190859,175.21,175.17,0.04040945]
[1748077284891,5.34015499,175.21,175.12,6.05453924]
[1748077285094,5.7072,175.18,175.11,121.21692152]
[1748077285290,5.2982464,175.21,175.12,11.76372047]
[1748077285590,5.2982464,175.21,175.12,5.7086]
[1748077285789,5.2982464,175.21,175.11,121.21692152]
[1748077285790,0.04091604,175.18,175.15,0.04027515]
[1748077286409,0.04091604,175.18,175.16,6.0621299]
[1748077286613,0.04091604,175.18,175.15,5.74807515]
[1748077286901,0.04091604,175.18,175.16,6.06244034]
[1748077287102,0.04091604,175.18,175.15,5.74807515]
[1748077287300,0.04091604,175.18,175.16,11.76963763]
[1748077287498,0.04091604,175.18,175.17,6.06213763]
[1748077290300,0.04091604,175.18,175.17,8.071156]
[1748077290605,0.04091604,175.18,175.17,11.5121884]
[1748077293295,0.04091604,175.18,175.17,9.50317003]
[1748077293501,0.04091604,175.18,175.15,0.04027515]
[1748077294107,5.7075,175.16,175.15,0.04027515]
[1748077294805,0.04091604,175.18,175.09,224.34]
[1748077295111,121.1782464,175.16,175.08,5.33692152]
[1748077295809,0.04375894,175.14,175.1,0.03612302]
[1748077297713,5.7092,175.11,175.1,0.03612302]
[1748077299611,121.9689,175.12,175.1,0.03612302]
[1748077299813,116.26,175.12,175.1,0.03612302]
[1748077300015,0.04375894,175.14,175.1,0.03612302]
[1748077300220,5.7088,175.13,175.1,0.03612302]
[1748077300504,0.04375894,175.14,175.1,0.03612302]
[1748077304319,5.7092,175.11,175.1,0.03612302]
[1748077311030,121.989,175.12,175.1,0.03612302]
[1748077311210,0.04375894,175.14,175.1,0.03612302]
[1748077313423,5.7091,175.12,175.1,0.03612302]
[1748077313635,0.04375894,175.14,175.1,0.03612302]
[1748077314021,5.7092,175.11,175.1,0.03612302]
[1748077317229,5.7087,175.13,175.1,0.03612302]
[1748077317422,0.04375894,175.14,175.1,0.03612302]
[1748077317921,5.7088,175.12,175.1,0.03612302]
[1748077318126,0.04375894,175.14,175.1,0.03612302]
[1748077318829,5.7092,175.11,175.1,0.03612302]
[1748077322927,0.04375894,175.14,175.1,0.03612302]
[1748077323131,0.04375894,175.14,175.11,5.7091]
[1748077323330,118.1991,175.22,175.11,4.024]
[1748077323529,116.3,175.22,175.11,10.0719859]
[1748077323833,9.2649464,175.26,175.12,6.04683244]
[1748077324029,116.3,175.25,175.13,122.34683244]
[1748077324229,116.3,175.25,175.13,116.3]
[1748077324429,0.04214531,175.21,175.17,0.03636422]
[1748077325533,0.04214531,175.21,175.17,6.08187495]
[1748077325839,0.04214531,175.21,175.17,116.33636422]
[1748077326337,0.04214531,175.21,175.18,1.855]
[1748077326536,116.28,175.28,175.18,7.89753945]
[1748077326833,116.28,175.28,175.19,1.9906]
[1748077327139,5.7046,175.25,175.19,7.6967]
[1748077327639,0.0429883,175.24,175.2,6.08037681]
[1748077327829,116.28,175.31,175.21,122.92119721]
[1748077328029,116.28,175.31,175.22,6.04119721]